Cogmind - Beta 13 @@@ ROGUE MODE // 2024.06.01 @ 09:49:12 Player: Bace Troncons Result: Destroyed by Y-64 Sentinel with Wave Gun Performance ------------- Evolutions (6) 3000 Regions Visited (8) 1600 Robots Destroyed (78) 390 Value Destroyed (2329) 2329 Prototype IDs (16) 320 Alien Tech Used (0) 0 Bonus (949) 949 TOTAL SCORE: 8588 Bonus ------- High Alert Combat Kills 18 Follower Combat Kills 1058 Friendly Fire -127 Cogmind --------- Core Integrity 0/1150 Matter 290/300 Energy 201/350 System Corruption 1% Temperature Cool (9) Movement Core (350) Ox6 Location -4/Armory Parts ------- > --- POWER (2) -------- Quantum Reactor > --- PROPULSION (5) --- (None) > --- UTILITY (9) ------ Advanced Weight Redist. System Improved Signal Interpreter Terrain Scan Processor Targeting Computer Advanced Melee Analysis Suite Advanced Melee Analysis Suite > --- WEAPON (3) ------- (None) > --- INVENTORY (5) ---- Light Antimatter Reactor Advanced Heat Sink Heavy Flak Cannon Peak State ------------ > --- POWER ------------ Mini Fusion Reactor Light Quantum Reactor > --- PROPULSION ------- Flexi-carbon Leg Antigrav System Antigrav Array Cooled Nuclear Pulse Thruster > --- UTILITY ---------- Improved Signal Interpreter Terrain Scan Processor Targeting Computer Advanced Melee Analysis Suite Advanced Melee Analysis Suite Improved Target Analyzer Particle Accelerator Thermal Defense Suite Component Analysis Suite > --- WEAPON ----------- Heavy Wave Gun Mini Smartbomb Launcher > --- INVENTORY -------- Light Antimatter Reactor Advanced Heat Sink Quantum Capacitor Power Sword [Rating: 108] Favorites ----------- Power Constructs Engine Ion Engine Power Core Constructs Reactor Mini Fusion Reactor Propulsion Light Treads Treads Light Treads Leg Constructs Hover Unit Antigrav System Flight Unit Cooled Nuclear Pulse Thruster Utility Armored Scrap Engine Device Armored Scrap Engine Storage Large Storage Unit Processor Terrain Scan Processor Hackware Hacking Suite Weapon Constructs Energy Gun Constructs Energy Cannon Constructs Ballistic Gun Light Assault Rifle Ballistic Cannon Battle Cannon Launcher Mini Smartbomb Launcher Special Weapon Improved Plasma Cutter Slashing Weapon Ripper Build | -11 -10 -10 -7 -5 -5 -5 -4 -4 ------- Run | Yrd Mat Sub Rec Fac Ext Cet Fac Arm Slots Evolved 12 | . . . . 10 . . 2 . Power 1 | . . . . 1 . . . . Propulsion 3 | . . . . 2 . . 1 . Utility 7 | . . . . 6 . . 1 . Weapon 1 | . . . . 1 . . . . Parts Attached 67 | 7 2 8 1 16 8 . 2 23 Power 8 | 1 . 1 . . . . . 6 Engine 2 | 1 . 1 . . . . . . Core . | . . . . . . . . . Reactor 6 | . . . . . . . . 6 Propulsion 9 | 2 . 2 . . . . . 5 Treads 5 | 2 . 2 . . . . . 1 Leg 1 | . . . . . . . . 1 Wheel . | . . . . . . . . . Hover 2 | . . . . . . . . 2 Flight 1 | . . . . . . . . 1 Utility 34 | 2 1 . 1 12 7 . 2 9 Device 19 | 1 . . 1 5 4 . 2 6 Storage 3 | 1 1 . . . 1 . . . Processor 9 | . . . . 4 2 . . 3 Hackware 3 | . . . . 3 . . . . Protection . | . . . . . . . . . Artifact . | . . . . . . . . . Weapon 16 | 2 1 5 . 4 1 . . 3 Energy Gun 1 | . . . . . . . . 1 Energy Cannon 1 | . . . . 1 . . . . Ballistic Gun 6 | 2 . 3 . 1 . . . . Ballistic Cannon 1 | . . 1 . . . . . . Launcher 3 | . 1 . . . 1 . . 1 Special Weapon 1 | . . . . 1 . . . . Impact Weapon . | . . . . . . . . . Slashing Weapon 3 | . . 1 . 1 . . . 1 Piercing Weapon . | . . . . . . . . . Special Melee Weapon . | . . . . . . . . . Unidentified Prototypes 7 | . . . . 1 . . . 6 Parts Lost 56 | . . 2 . 20 7 1 11 15 Power 11 | . . 1 . 3 1 . 2 4 Propulsion 14 | . . 1 . 5 1 . 3 4 Utility 17 | . . . . 5 3 1 4 4 Weapon 14 | . . . . 7 2 . 2 3 Highest Loss Streak 11 | . . 1 . 10 3 1 11 11 To Critical Strikes 1 | . . . . 1 . . . . Average Slot Usage (%) 71 | . 100 99 69 47 57 54 48 61 Engine 5 | . 14 14 6 1 . . . . Core 2 | . . . 6 . 4 5 4 . Reactor 1 | . . . . 3 . . . 4 Treads 9 | . 28 27 5 . . . . . Leg 1 | . . . . 2 . 5 4 3 Hover 2 | . . . 7 . 1 . . 4 Device 13 | . 14 14 14 9 10 17 16 15 Storage 4 | . 14 14 . . 1 . . . Processor 7 | . . . . 5 17 17 15 24 Hackware 2 | . . . . 8 6 1 . . Energy Gun 1 | . . . 5 . . . 1 2 Energy Cannon 1 | . . . . . 4 5 4 . Ballistic Gun 6 | . 27 10 1 2 1 . . . Ballistic Cannon 2 | . . 4 6 . . . . . Slashing Weapon 6 | . . 12 14 5 . . . . Naked Turns . | . . . . . . . . . Heaviest Build 43 | 14 30 32 12 31 42 34 42 43 Greatest Support 103 | 40 40 40 45 103 85 64 64 46 Greatest Overweight (x) 14 | 4 . 1 3 5 1 . . 14 Average Overweight (x) . | . . . . . . . . 1 Largest Inventory Capacity 15 | 8 15 15 5 5 10 5 5 5 Average Capacity 7 | 7 10 15 5 5 6 5 5 5 Most Carried 15 | 5 11 15 5 4 6 3 5 5 Average Carried 5 | 3 6 13 4 2 2 3 4 2 Final Capacity 15 | 8 15 15 5 5 5 5 5 5 Final Carried 12 | 4 11 12 5 2 3 3 5 3 Scrap Engine Consumption 169 | . . . 73 33 41 . 22 . Constructs Created 11 | . . . 3 5 2 . 1 . Constructs Modified 56 | . . . 18 16 17 1 4 . Class Distribution -------------------- 39% | Mutant 19% | Construct 13% | Scavenger-Construct 9% | Hacker-Mutant 8% | Scavenger-Mutant 3% | Commander-Mutant Dominant Class ---------------- Mutant | -10/Materials Mutant | -10/Subcaves Construct | -7/Recycling Hacker-Mutant | -5/Factory Scavenger-Construct | -5/Extension Scavenger-Construct | -5/Cetus Scavenger-Construct | -4/Factory Scavenger-Mutant | -4/Armory Resources | -11 -10 -10 -7 -5 -5 -5 -4 -4 ----------- Run | Yrd Mat Sub Rec Fac Ext Cet Fac Arm Matter Collected 1278 | 214 128 177 40 228 128 . 20 343 Remotely . | . . . . . . . . . Salvage Created 3769 | 18 191 284 1185 1294 479 . 236 82 Parts 145 | 3 10 16 38 53 15 . 6 4 Haulers Intercepted 2 | . . . 1 1 . . . . Recyclers Shooed 2 | . . . . 1 1 . . . Parts Field Recycled . | . . . . . . . . . Retrieved Matter . | . . . . . . . . . Parts Self-Destructed 11 | . . 11 . . . . . . Prevented . | . . . . . . . . . Kills | -11 -10 -10 -7 -5 -5 -5 -4 -4 ------- Run | Yrd Mat Sub Rec Fac Ext Cet Fac Arm Combat Hostiles Destroyed 47 | . 4 7 10 15 4 . 1 6 Melee 29 | . . 5 10 14 . . . . Guns 6 | . 4 1 . 1 . . . . Cannons 4 | . . . . . 3 . 1 . AOE 8 | . . 1 . . 1 . . 6 Classes Destroyed 15 | 1 2 2 7 1 . . 1 1 Worker 4 | . . . 1 3 . . . . Builder 4 | . . . 2 1 1 . . . Tunneler 4 | 1 . . . 3 . . . . Hauler 2 | . . . 1 1 . . . . Recycler 10 | . . . 4 4 1 . 1 . Mechanic 1 | . . . . . . . 1 . Watcher 5 | . 1 . . . 1 . 2 1 Swarmer 19 | . . . 1 13 . . . 5 Grunt 11 | . 4 2 4 . 1 . . . Duelist 1 | . . . 1 . . . . . Sentry 7 | . . 1 3 . 3 . . . Specialist 1 | . . . . . . . . 1 Hunter 1 | . . . 1 . . . . . Programmer 3 | . . . . 2 . . 1 . Subdweller 4 | . . 4 . . . . . . Thug 1 | . . . . . 1 . . . Best Kill Streak 13 | 1 4 2 13 8 3 . 2 7 Combat Bots Only 6 | . 4 2 4 6 2 . 1 6 Max Kills in Single Turn 4 | 1 1 1 1 1 2 . 1 4 Gunslinging . | . . . . . . . . . Exploded 4 | . . 1 . . 1 . . 4 Melee 1 | . . 1 1 1 . . . . Uniques/NPCs Destroyed . | . . . . . . . . . Combat | -11 -10 -10 -7 -5 -5 -5 -4 -4 -------- Run | Yrd Mat Sub Rec Fac Ext Cet Fac Arm Hostile Shots Fired 743 | . 23 33 75 184 130 11 182 105 Missed 240 | . 3 7 17 48 50 5 74 36 Damage Taken 9881 | . 323 385 463 2570 1951 161 2330 1698 Core 2274 | . 77 71 89 547 303 28 456 703 Absorbed by Shields 110 | . . . . 110 . . . . Ignored by Resistances 5 | . . . . . . . . 5 Regen/Repaired (Parts) 1181 | . . . 294 247 390 29 221 . Core Remaining (%) 39 | 100 . . 5 . . 12 . . Volleys Fired 126 | 1 19 9 . 27 34 . 23 13 Largest 2 | 2 2 2 . 2 2 . 2 1 Hottest 151 | 40 40 40 . 85 111 . 151 88 Shots Fired 168 | 2 36 13 . 37 37 . 30 13 Gun 90 | 2 34 9 . 27 3 . 7 8 Cannon 64 | . . 1 . 10 30 . 23 . Launcher 14 | . 2 3 . . 4 . . 5 Special . | . . . . . . . . . Kinetic 75 | 2 34 10 . 27 2 . . . Thermal 72 | . . . . 10 31 . 23 8 Explosive 14 | . 2 3 . . 4 . . 5 Electromagnetic 7 | . . . . . . . 7 . Robot Hit Streak 18 | 1 4 1 . 12 18 . 9 13 Robot Miss Streak 4 | . 2 2 . 4 2 . 3 4 Penetration Max . | . . . . . . . . . Secondary Targets . | . . . . . . . . . Shots Hit Robots 194 | 1 18 13 40 68 27 . 18 9 Core Hits 115 | 1 10 10 20 29 23 . 9 13 Critical Kills . | . . . . . . . . . Critical Parts Destroyed . | . . . . . . . . . Critical Strikes 10 | . . 3 6 1 . . . . Sever 10 | . . 3 6 1 . . . . Melee Attacks 188 | . . 25 62 80 . . . 21 Thermal 21 | . . . . . . . . 21 Impact . | . . . . . . . . . Slashing 167 | . . 25 62 80 . . . . Piercing . | . . . . . . . . . Sneak Attacks 28 | . . . 20 8 . . . . Combat Hostiles 11 | . . . 11 . . . . . Follow-up Attacks 7 | . . . . 7 . . . . Damage Inflicted 8295 | 11 208 533 2406 2618 1190 . 556 773 Guns 880 | 11 208 18 . 322 23 . 165 133 Cannons 1380 | . . . . 241 757 . 382 . Explosions 1207 | . . 157 . . 410 . . 640 Melee 4814 | . . 358 2406 2050 . . . . Ramming 14 | . . . . 5 . . 9 . Kinetic 582 | 11 208 18 . 322 23 . . . Thermal 1513 | . . . . 241 757 . 382 133 Explosive 1207 | . . 157 . . 410 . . 640 Electromagnetic 165 | . . . . . . . 165 . Impact . | . . . . . . . . . Slashing 4814 | . . 358 2406 2050 . . . . Piercing . | . . . . . . . . . Highest Corruption 1 | . 1 1 1 1 1 1 1 1 Average Corruption 1 | . 1 1 1 1 1 1 1 1 Corruption Purged . | . . . . . . . . . Corruption Blocked . | . . . . . . . . . Effects 30 | . 1 8 6 1 8 1 . 5 Message Errors 10 | . 1 2 . 1 3 . . 3 Matter Fused 9 | . . 5 1 . 2 . . 1 Heat Flow Errors 4 | . . . 2 . . 1 . 1 Energy Discharges 1 | . . 1 . . . . . . Data Loss (minor) 4 | . . . 1 . 3 . . . Data Loss (major) 2 | . . . 2 . . . . . Overload Shots . | . . . . . . . . . Overflow Damage 568 | . . . 261 262 . . 3 42 Projectiles 32 | . . . . 29 . . 3 . Explosions 42 | . . . . . . . . 42 Melee 494 | . . . 261 233 . . . . Knockbacks 1 | . . . . 1 . . . . Impact 1 | . . . . 1 . . . . Kinetic . | . . . . . . . . . Secondary . | . . . . . . . . . Self-Inflicted Damage 2 | . . . . 2 . . . . Shots . | . . . . . . . . . Rammed 4 | . . . . 4 . . . . Targets Rammed 5 | . . . . 4 . . 1 . Kicked 1 | . . . . . . . 1 . Crushed . | . . . . . . . . . Highest Temperature 320 | . 52 . 177 36 320 201 193 217 Average Temperature 78 | . 23 . 57 14 115 174 66 81 Received Heat Transfer 1728 | . 213 141 156 75 489 9 345 300 Siege Activations . | . . . . . . . . . Robots Corrupted . | . . . . . . . . . Combat Hostiles . | . . . . . . . . . Parts Fried 2 | . . . . . . . 2 . Impact Corruptions . | . . . . . . . . . Robots Melted . | . . . . . . . . . Combat Hostiles . | . . . . . . . . . Parts Melted 4 | . . . . 1 3 . . . Heat Transferred 1850 | . . . . 259 962 . 481 148 Parts Sabotaged . | . . . . . . . . . Parts Stolen . | . . . . . . . . . Parts Stripped . | . . . . . . . . . Power Chain Reactions . | . . . . . . . . . Alert | -11 -10 -10 -7 -5 -5 -5 -4 -4 ------- Run | Yrd Mat Sub Rec Fac Ext Cet Fac Arm Peak Influence 422 | 5 133 . 245 422 365 53 95 386 Initial 256 | . 3 . . 256 137 53 23 11 Average 158 | 1 47 . 110 328 233 45 39 119 Maximum Alert Level 2 | . . . 1 2 1 . . 1 Low Security (%) 59 | 100 100 . 77 . 26 100 100 75 Level 1 36 | . . . 22 78 73 . . 24 Level 2 4 | . . . . 21 . . . . Level 3 . | . . . . . . . . . Level 4 . | . . . . . . . . . Level 5 . | . . . . . . . . . High Security . | . . . . . . . . . Max Security . | . . . . . . . . . Squads Dispatched 8 | . . . . 1 2 . 2 3 Investigation 4 | . . . . . 2 . 1 1 Extermination 4 | . . . . 1 . . 1 2 Reinforcement . | . . . . . . . . . Assault . | . . . . . . . . . Garrison . | . . . . . . . . . Intercept . | . . . . . . . . . Searches Triggered . | . . . . . . . . . Construction Impeded . | . . . . . . . . . Haulers Reinforced . | . . . . . . . . . Active Scanning Responses . | . . . . . . . . . Cargo Convoy Interrupts . | . . . . . . . . . Stealth | -11 -10 -10 -7 -5 -5 -5 -4 -4 --------- Run | Yrd Mat Sub Rec Fac Ext Cet Fac Arm Distress Signals 8 | . 2 . . 3 1 1 . 1 Communications Jammed . | . . . . . . . . . Distress Signals . | . . . . . . . . . Times Spotted 138 | . 7 6 2 34 21 5 38 25 Peak Tracking Total 18 | . 3 2 1 8 7 5 18 8 Tactical Retreats 10 | . . . . 4 3 . 3 . Traps | -11 -10 -10 -7 -5 -5 -5 -4 -4 ------- Run | Yrd Mat Sub Rec Fac Ext Cet Fac Arm Traps Triggered 11 | . 2 . . 4 3 . 1 1 Indirectly . | . . . . . . . . . Trap Hack Attempts . | . . . . . . . . . Triggered . | . . . . . . . . . Disarmed . | . . . . . . . . . Reprogrammed . | . . . . . . . . . Reused . | . . . . . . . . . Traps Extracted . | . . . . . . . . . Installed . | . . . . . . . . . Triggered . | . . . . . . . . . Most Traps Carried 1 | . . 1 . . . . . . Machines | -11 -10 -10 -7 -5 -5 -5 -4 -4 ---------- Run | Yrd Mat Sub Rec Fac Ext Cet Fac Arm Machines Disabled 4 | . 1 . 1 1 . . . 1 Max in Single Turn 1 | . 1 . 1 1 . . . 1 Machines Repaired . | . . . . . . . . . Machines Dismantled . | . . . . . . . . . Machines Sabotaged . | . . . . . . . . . Overloaded Fab Kills . | . . . . . . . . . Hacking | -11 -10 -10 -7 -5 -5 -5 -4 -4 --------- Run | Yrd Mat Sub Rec Fac Ext Cet Fac Arm Machines Accessed 29 | . 2 1 10 5 4 . 2 5 Terminals 14 | . 1 . 5 2 4 . 1 1 Fabricators 6 | . . . . 1 . . 1 4 Repair Stations 1 | . 1 . . . . . . . Recycling Units 7 | . . . 5 2 . . . . Scanalyzers . | . . . . . . . . . Garrison Access . | . . . . . . . . . Total Hacks 70 | . 3 3 28 10 8 . 9 9 Successful 32 | . 1 3 14 3 4 . 3 4 Failed 38 | . 2 . 14 7 4 . 6 5 Catastrophic 9 | . . . 3 2 2 . . 2 Database Lockouts . | . . . . . . . . . Manual 6 | . . . 4 . 2 . . . Terminals 39 | . 1 . 19 3 8 . 5 3 Fabricators 12 | . . . . 2 . . 4 6 Repair Stations 2 | . 2 . . . . . . . Recycling Units 14 | . . . 9 5 . . . . Scanalyzers . | . . . . . . . . . Garrison Access . | . . . . . . . . . Terminal Hacks 20 | . 1 3 10 1 4 . 1 . Record 6 | . . 3 3 . . . . . Part Schematic 4 | . . . 3 . 1 . . . Robot Schematic 2 | . . . 2 . . . . . Prototype ID Bank 2 | . 1 . . . 1 . . . Open Door 2 | . . . . 1 1 . . . Terminal Index 1 | . . . . . 1 . . . Unreport Threat 1 | . . . . . . . 1 . Zone Layout 2 | . . . 2 . . . . . Fabricator Hacks 7 | . . . . 1 . . 2 4 Network Status 1 | . . . . . . . 1 . Load Schematic 1 | . . . . . . . . 1 Build 5 | . . . . 1 . . 1 3 Repair Station Hacks . | . . . . . . . . . Recycling Unit Hacks 5 | . . . 4 1 . . . . Retrieve Components 5 | . . . 4 1 . . . . Scanalyzer . | . . . . . . . . . Garrison Access Hacks . | . . . . . . . . . Unauthorized Hacks . | . . . . . . . . . Terminals . | . . . . . . . . . Fabricators . | . . . . . . . . . Repair Stations . | . . . . . . . . . Recycling Units . | . . . . . . . . . Scanalyzers . | . . . . . . . . . Garrison Access . | . . . . . . . . . Data Cores Recovered . | . . . . . . . . . Used . | . . . . . . . . . Hacking Detections 21 | . 1 . 8 3 3 . 1 5 Full Trace Events 8 | . . . 5 . 1 . 1 1 Feedback Events . | . . . . . . . . . Feedback Blocked . | . . . . . . . . . Robot Schematics Acquired 2 | . . . 2 . . . . . Robots Built 3 | . . . . . . . . 3 Authchips . | . . . . . . . . . Time 99 | . . . . . . . . 99 Total Robot Build Rating 6 | . . . . . . . . 6 Part Schematics Acquired 4 | . . . 3 . 1 . . . Parts Built 7 | . . . . 2 . . 2 3 Authchips . | . . . . . . . . . Time 470 | . . . . 64 . . 139 267 Total Part Build Rating 60 | . . . . 16 . . 18 26 Parts Repaired . | . . . . . . . . . Time . | . . . . . . . . . Parts Recycled . | . . . . . . . . . Recycled Matter . | . . . . . . . . . Retrieved Matter . | . . . . . . . . . Retrieved Components 18 | . . . 18 . . . . . Parts Scanalyzed . | . . . . . . . . . Part Schematics Acquired . | . . . . . . . . . Parts Damaged . | . . . . . . . . . Bothacking | -11 -10 -10 -7 -5 -5 -5 -4 -4 ------------ Run | Yrd Mat Sub Rec Fac Ext Cet Fac Arm Used RIF Installer . | . . . . . . . . . Robots Hacked . | . . . . . . . . . Non-combat . | . . . . . . . . . Combat . | . . . . . . . . . Robot Hacks Applied . | . . . . . . . . . Relay Couplers Released . | . . . . . . . . . Fabnet Peak Effective % . | . . . . . . . . . Robots Rewired 11 | . . . . . 11 . . . Allies Hacked . | . . . . . . . . . Hacks Repelled . | . . . . . . . . . Allies | -11 -10 -10 -7 -5 -5 -5 -4 -4 -------- Run | Yrd Mat Sub Rec Fac Ext Cet Fac Arm Total Allies 26 | . . . . . 13 . . 13 Largest Group 10 | . . . . . 7 . . 10 Highest-Rated Group 481 | . . . . . 192 . . 481 Highest-Rated Ally 58 | . . . . . 39 . . 58 Total Orders . | . . . . . . . . . Ally Attacks 168 | . . . . . 62 . . 106 Total Damage 4117 | . . . . . 981 . . 3136 Kills 23 | . . . . . 9 . . 14 Allies Corrupted . | . . . . . . . . . Allies Melted . | . . . . . . . . . Intel | -11 -10 -10 -7 -5 -5 -5 -4 -4 ------- Run | Yrd Mat Sub Rec Fac Ext Cet Fac Arm Robot Analysis Total . | . . . . . . . . . Derelict Logs Recovered 1 | . . 1 . . . . . . Drone Launches . | . . . . . . . . . Drone Recoveries . | . . . . . . . . . Exploration | -11 -10 -10 -7 -5 -5 -5 -4 -4 ------------- Run | Yrd Mat Sub Rec Fac Ext Cet Fac Arm Turns Passed 6806 | 112 761 1317 1226 1048 994 54 469 825 Spaces Moved 3634 | 54 267 567 819 575 679 56 271 346 Core 118 | 10 . . 28 56 . . . 24 Treads 1227 | 44 267 567 254 87 . . . 8 Legs 831 | . . . 7 289 111 56 271 97 Wheels 323 | . . . . 57 266 . . . Hover 977 | . . . 443 15 302 . . 217 Flight 158 | . . . 87 71 . . . . Fastest Speed 49 | 50 160 160 100 49 49 96 97 50 Average Speed 123 | 160 160 160 128 110 79 97 99 148 Slowest Speed 750 | 250 160 240 200 300 145 101 135 750 Overloaded Moves . | . . . . . . . . . Propulsion Burnouts . | . . . . . . . . . Robots Hopped . | . . . . . . . . . Cave-ins Triggered . | . . . . . . . . . Exploration Rate (%) 34 | 3 36 41 98 16 65 23 9 16 Regions Visited 8 Branch Regions 5 Pre-discovered Areas . | . . . . . . . . . Known Exits Taken 4 | . . . . 1 1 1 1 . Unknown Exits Taken 4 | 1 1 1 1 . . . . . Scrap Searched 2 | . . 2 . . . . . . Spaces Dug 26 | . 12 2 3 3 6 . . . Terrain Destroyed 104 | . 12 19 3 5 22 . 8 35 Melee 8 | . . 2 3 3 . . . . Projectile 13 | . . . . 2 3 . 8 . AOE 83 | . 12 17 . . 19 . . 35 Terrain Rammed . | . . . . . . . . . Walls Destroyed . | . . . . . . . . . Machines Disabled . | . . . . . . . . . Actions | -11 -10 -10 -7 -5 -5 -5 -4 -4 --------- Run | Yrd Mat Sub Rec Fac Ext Cet Fac Arm Total 5502 | 75 567 928 905 842 1096 55 440 594 Wait 1366 | 9 274 307 8 132 313 . 143 180 Move 3626 | 53 266 566 818 574 678 55 270 346 Hop . | . . . . . . . . . Pick Up 28 | 5 6 4 4 2 5 . . 2 Fast Attach 44 | 6 . 3 1 10 3 . 2 19 Attach 16 | 1 . 1 . 6 5 . . 3 Detach 12 | . . 2 2 3 3 . 1 1 Swap 7 | . 2 4 . . . . . 1 Drop 24 | . . 7 10 1 1 . . 5 Fire 126 | 1 19 9 . 27 34 . 23 13 Melee 179 | . . 25 62 71 . . . 21 Ram 4 | . . . . 4 . . . . Kick 1 | . . . . . . . 1 . Crush . | . . . . . . . . . Escape Stasis 28 | . . . . 12 16 . . . Rewire 41 | . . . . . 38 . . 3 Trap . | . . . . . . . . . Miscellaneous . | . . . . . . . . . Route ------- -11/Scrapyard -10/Materials (discovered 2 exits: [*Mat] / *Sub) -10/Subcaves (discovered 3 exits: *Mat x2 / *Rec) -7/Recycling -5/Factory (discovered 4 exits: Fac / Upp x2 / *Ext) -5/Extension (discovered 2 exits: *Fac / *Cet) -5/Cetus -4/Factory -4/Armory History --------- Turn | Location | Event 14 | -11/Scrapyard | Discovered new exit (range 16) 113 | -11/Scrapyard | Entered Materials 306 | -10/Materials | Build established: Mutant 635 | -10/Materials | Discovered new exit (range 14) 728 | -10/Materials | Discovered new exit (range 11) 874 | -10/Materials | Entered Subcaves 874 | -10/Subcaves | Discovered new exit (range 15) 889 | -10/Subcaves | Identified exit to Materials 1290 | -10/Subcaves | Shifting Twisted Machinery released Shrapnel Trap 1362 | -10/Subcaves | Core integrity fell below 50% 1410 | -10/Subcaves | Shifting Twisted Machinery released Sub. Power Source 1691 | -10/Subcaves | Visited Clippyterm 1696 | -10/Subcaves | Learned Factory fabricator intel 1696 | -10/Subcaves | Learned 40 Factory zone layouts 1696 | -10/Subcaves | Learned Factory stockpile data 1968 | -10/Subcaves | Discovered new exit (range 5) 2191 | -10/Subcaves | Entered Recycling 2193 | -7/Recycling | Found Scrap Engine 2538 | -7/Recycling | Build established: Construct 2996 | -7/Recycling | Core integrity fell below 20% 3055 | -7/Recycling | Discovered new exit (range 15) 3417 | -7/Recycling | Entered Factory 3417 | -5/Factory | Evolved 10 slots: Power x1, Propulsion x2, Utility x6, Weapon x1 3418 | -5/Factory | Identified exit to Factory 3418 | -5/Factory | Identified exit to Extension 3418 | -5/Factory | Identified exit to Upper Caves 3420 | -5/Factory | Loaded intel: 6 fabricator locations 3615 | -5/Factory | Fabricated Particle Reactor (x2) 4059 | -5/Factory | Lost 10 parts (2p2n3u3w) 4451 | -5/Factory | Core integrity fell below 50% 4465 | -5/Factory | Entered Extension 4487 | -5/Extension | Lost 6 parts (2n1u3w) 4769 | -5/Extension | Lost 3 parts (1p2u) 5179 | -5/Extension | Rescued a captive Derelict 5180 | -5/Extension | Rescued a captive Derelict 5251 | -5/Extension | Lost 3 allies 5308 | -5/Extension | Spotted B-75 Beast 5342 | -5/Extension | Spotted B-75 Beast 5367 | -5/Extension | Core integrity fell below 20% 5376 | -5/Extension | Lost 7 allies 5403 | -5/Extension | Lost 3 parts (1n1u1w) 5442 | -5/Extension | Discovered exit to Factory (range 16) 5442 | -5/Extension | Discovered new exit (range 16) 5458 | -5/Extension | Identified exit to Cetus 5459 | -5/Extension | Entered Cetus 5473 | -5/Cetus | Spotted Cetus Guard 5473 | -5/Cetus | Spotted Cetus Guard 5474 | -5/Cetus | Spotted Cetus Guard 5490 | -5/Cetus | Spotted Cetus Guard 5496 | -5/Cetus | Discovered exit to Factory (range 16) 5513 | -5/Cetus | Entered Factory 5513 | -4/Factory | Evolved 2 slots: Propulsion x1, Utility x1 5537 | -4/Factory | Found Unknown Device 5537 | -4/Factory | Identified Quantum Capacitor 5616 | -4/Factory | Build established: Scavenger-Construct 5691 | -4/Factory | Fabricated Enh. Quantum Rifle (x2) 5957 | -4/Factory | Discovered new exit (range 12) 5981 | -4/Factory | Identified exit to Armory 5982 | -4/Factory | Entered Armory 6012 | -4/Armory | Lost 11 parts (2p3n4u2w) 6121 | -4/Armory | Fabricated Antigrav Array? 6257 | -4/Armory | Core integrity fell below 50% 6265 | -4/Armory | Assisted by bots powering up and referring to "LRC-V3" 6322 | -4/Armory | Found Prototype Launcher 6322 | -4/Armory | Identified Mni. Smartbomb Launcher 6591 | -4/Armory | Fabricated L-31 Rogue? 6674 | -4/Armory | Lost 8 allies 6695 | -4/Armory | Fabricated Enh. Quantum Rifle? 6720 | -4/Armory | Lost 3 allies 6731 | -4/Armory | Core integrity fell below 20% 6807 | -4/Armory | Destroyed by Y-64 Sentinel with Wave Gun Last Messages --------------- 06721_ Penetrated by Slug. 06726_ Slug penetrates Wall. 06726_ Lgt. Particle Reactor lost to overload. 06726_ Y-64 Sentinel KE Penetrator blown off. 06726_ Y-64 Sentinel Imp. Treads blown off. 06729_ Component Analysis Suite destroyed. 06732_ ALERT: Rogue bot located, Programmers report to Armory Zone 5M. 06743_ Antigrav System destroyed. 06750_ Acquired Imp. Treads. 06754_ Acquired 10 matter. 06757_ Mni. Smartbomb Launcher destroyed. 06761_ The unstable cave ceiling collapses. 06785_ Imp. Target Analyzer destroyed. 06787_ Hvy. Wave Gun destroyed. 06790_ Imp. Treads destroyed. 06790_ Particle Accelerator destroyed. 06796_ Antigrav Array destroyed. 06798_ Segregator destroyed. 06802_ Acquired Quantum Reactor. Map ----- +----------------------------------------------------+ | | | | | | | | | | | | | | | | | | | | | | | | | | | | | | | | | | | | | | | ????????????????#############????????????????????? | | ????????????????# #????????????????????? | | ????????????????# #????????????????????? | | ????????????????# *** #?? ???????????????? | | ????????????????# *** #? === +????????? | | ????????????????# ** # #????????? | | ????????????????# p @ #????????? | | ??????#+###?????# Y p #????????? | | ??????# ##########;### # # +??????????? | | ??????# ### # ???????????? | | ??????# ^^ % = ???????????? | | ??????# ^ ]! =*[% ??????????? | | ??????# ^ !]!/=%=[= % ??????????? | | ??? ^ *= =*=!=# # [ #????????????? | | ???? #########=[%###### # ????????????? | | ????######+?????????# [!#?????# #??????????????? | | ????????????????????#*[*#?????# +??????????????? | | ????????????????????#%[!#?????# #??????????????? | | ???????????????????##[= ##????# #??????????????? | | ???????????????????#*%[ #????# #??????????????? | | ???????????????????# [ #????# #??????????????? | | ???????????????????# % #????# #??????????????? | | ???????????????????# #????# #??????????????? | | ???????????????????# #????# ######?????????? | | ??????????????###??## ####### #?????????? | | ?????????????## ##### # #! #?????????? | | ?????????????# !! # + # "" #?????????? | | ?????????????# ! # # # F" #?????????? | | ?????????????# # # # " #?????????? | | ?????????????# # *!# # "" #?????????# | | ?????????????# #=[%# # #????????? | +----------------------------------------------------+ Best States ------------- Heat Dissipation 43 Energy Generation 41 Energy Capacity 491 Matter Stores 300 Matter Capacity 300 Sight Range 16 Robot Scan Range 15 Terrain Scan Range 16 Terrain Scan Density 210 Jamming Range 14 Additional Mass Support 9 Resistance: TH 20 Melee Speed Boost 20 Phase Shifting 5 Evasion (%) 63 Targeting Accuracy 5 Melee Accuracy 16 Target Analysis 6 Recoil Reduction 3 Particle Charging 30 Salvage Targeting 4 Offensive Hacking 10 Defensive Hacking 14 Item Schematics ----------------- Arm. Huge Wheel | -7/Recycling | Hacked Cloaking Device | -7/Recycling | Hacked Lgt. Angular Momentum Engine | -7/Recycling | Hacked Mass Driver | -5/Extension | Hacked Robot Schematics ------------------ L-31 Rogue | -7/Recycling | Hacked B-48 Gladiator | -7/Recycling | Hacked Fabricated ------------ Particle Reactor | x2 | -5/Factory | Preloaded Enh. Quantum Rifle | x2 | -4/Factory | Preloaded Antigrav Array | x1 | -4/Armory | Preloaded L-31 Rogue | x3 | -4/Armory Enh. Quantum Rifle | x2 | -4/Armory | Preloaded Alien Tech Used ----------------- None Achievements -------------- None Challenges ------------ None Game ------ Seed CryofiberThrusterMace Manual? 0 Play Time 01:12:21 Cumulative 100.3 hours Start 2024.06.01 @ 07:32:08 End 2024.06.01 @ 09:49:12 Sessions 1 Manual Loads 0 Difficulty Rogue Special Mode None Game No. 171 Rogue 171 Adventurer 0 Explorer 0 Win Type - Total 1 Types 1/0/0/0/0/0/0/0/0 Lore% 42 Gallery% 48 Achievement% 34 Wizard Run 0 Options --------- Layout 1 ASCII 0 Keyboard 1 Movement Numpad Keybinds 0 Fullscreen 1 Font 24/Smallcaps Map View 50x35 Zoom Use 0% Tactical HUD 1 Map Filters NONE Filters NONE Steam 1 RUN: 637d6562-a715-401a-9d2d-e56f8c3eb86e